[Event "Marshall CC U2400 01-2025"]
[Site "New York"]
[Date "2025.01.18"]
[Round "1.13"]
[White "Cheung, Kyle"]
[Black "Singh, Ian Avery"]
[Result "1-0"]
[Annotator "NA COMBH"]
[ECO "B90"]
[WhiteElo "1860"]
[BlackElo "1756"]
[PlyCount "141"]
[EventDate "2025.01.17"]
[EventType "swiss"]
[EventCountry "USA"]
[SourceTitle "playchess.com"]
[Source "ChessBase"]
[SourceQuality "1"]
[TimeControl "5400+30"]

1. e4 {[%emt 0:00:24]} c5 {[%emt 0:00:14]} 2. Nf3 {[%emt 0:00:09]} d6 {[%emt 0:00:08]} 3. d4 {[%emt 0:00:01]} cxd4 {[%emt 0:00:09]} 4. Nxd4 {[%emt 0:00:03]} Nf6 {[%emt 0:00:08]} 5. Nc3 {[%emt 0:00:04]} a6 {[%emt 0:00:06]} 6. f3 {[%emt 0:00:03]} e5 {[%emt 0:00:06]} 7. Nb3 {[%emt 0:00:04]} Be6 {[%emt 0:00:10]} 8. Be3 {[%emt 0:00:02]} Be7 {[%emt 0:00:22]} 9. Qd2 {[%emt 0:01:26]} h5 {[%emt 0:00:24]} 10. Nd5 {[%emt 0:01:30]} Nxd5 {[%emt 0:00:12]} 11. exd5 {[%emt 0:00:03]} Bf5 {[%emt 0:00:10] B90: Sicilian Najdorf: Unusual White 6th moves, 6 Be3 Ng4 and 6 Be3 e5.} 12. Be2 {[%emt 0:02:24]} Nd7 {[%emt 0:01:46]} 13. c4 {[%emt 0:04:08]} a5 {[%emt 0:01:14]} 14. a4 {[%emt 0:01:53]} b6 {[%emt 0:04:30]} 15. O-O {[%emt 0:03:35]} O-O {[%emt 0:07:08]} 16. f4 {[%emt 0:04:31]} Bg4 {[%emt 0:11:31]} 17. Bxg4 {[%emt 0:02:15]} hxg4 {[%emt 0:00:30]} 18. f5 {[%emt 0:00:02]} Nf6 {[%emt 0:07:25]} ({Better is} 18... Rc8 $14) 19. Qe2 {[%emt 0:01:16]} Rc8 {[%emt 0:01:23]} 20. Nd2 {[%emt 0:01:57]} g6 $18 {[%emt 0:15:56]} (20... Re8 $142 21. b3 g6) 21. Bg5 {[%emt 0:06:04]} g3 {[%emt 0:12:23]} 22. hxg3 {[%emt 0:05:54]} Nh5 {[%emt 0:01:25]} 23. Bxe7 {[%emt 0:01:51]} Qxe7 {[%emt 0:00:05]} 24. Ne4 {[%emt 0:05:42]} Nf6 {[%emt 0:04:06]} 25. Rf3 {[%emt 0:06:04]} Nxe4 {[%emt 0:05:38]} 26. Qxe4 {[%emt 0:00:03]} Qf6 {[%emt 0:01:06]} 27. Raf1 {[%emt 0:01:54]} Kg7 {[%emt 0:04:52]} 28. b3 {[%emt 0:00:21]} g5 {[%emt 0:01:39]} 29. Qe3 {[%emt 0:05:38]} Rc5 {[%emt 0:00:43]} 30. g4 {[%emt 0:02:04]} Rh8 {[%emt 0:01:22]} 31. Rh3 {[%emt 0:01:22]} Rxh3 {[%emt 0:01:14]} 32. gxh3 {[%emt 0:01:23]} Rc8 {[%emt 0:07:18]} 33. Qxb6 {[%emt 0:01:19]} Rc5 {[%emt 0:00:51]} 34. Qb8 {[%emt 0:05:50]} e4 {[%emt 0:04:03]} 35. Qe8 {[%emt 0:00:58]} Qd4+ {[%emt 0:02:02]} 36. Kg2 {[%emt 0:01:23]} f6 {[%emt 0:00:39]} 37. Qe7+ {[%emt 0:00:34]} Kg8 {[%emt 0:00:18]} 38. Qxd6 {[%emt 0:00:56]} e3 {[%emt 0:00:35]} 39. Qe6+ {[%emt 0:02:03]} Kg7 {[%emt 0:00:28]} 40. Kf3 {[%emt 0:01:02]} Qd3 {[%emt 0:01:19]} 41. Re1 {[%emt 0:00:33]} (41. Qxe3 $2 {is the wrong capture.} Qxf1+ 42. Kg3 Rc7 $19) 41... e2+ {[%emt 0:01:23]} 42. Qe3 {[%emt 0:00:27]} Qd1 {[%emt 0:01:22]} 43. Qe7+ {[%emt 0:02:41]} Kg8 {[%emt 0:00:01]} 44. Qe8+ {[%emt 0:00:03]} Kg7 {[%emt 0:00:02]} 45. Qg6+ {[%emt 0:00:17]} Kh8 {[%emt 0:00:23]} 46. Qxf6+ {[%emt 0:00:02]} Kh7 {[%emt 0:00:11]} 47. Qg6+ {[%emt 0:00:42]} Kh8 {[%emt 0:00:01]} 48. Qh6+ {[%emt 0:00:01]} ({Worse is} 48. Rxe2 Qf1+ 49. Rf2 Qh1+ 50. Rg2 Qf1+ 51. Rf2 Qd3+ 52. Kg2 Qe4+ 53. Kg1 Qe1+ 54. Kg2 Qe4+ 55. Kf1 Qh1+ 56. Ke2 Qe4+ 57. Kf1 Qh1+ 58. Ke2 Qe4+ 59. Kd2 Rxd5+ 60. cxd5 Qc2+ 61. Ke3 Qxf2+ 62. Ke4 Qe3+ 63. Kxe3 $11) 48... Kg8 {[%emt 0:00:19]} 49. Qxg5+ {[%emt 0:00:03]} Kf7 {[%emt 0:00:13]} 50. Qg6+ {[%emt 0:00:01]} Kf8 {[%emt 0:00:38]} 51. Qf6+ {[%emt 0:00:07]} Kg8 {[%emt 0:00:11]} 52. Qe6+ {[%emt 0:00:05]} Kh7 {[%emt 0:00:29]} 53. Qxe2 {[%emt 0:00:21]} Qxb3+ {[%emt 0:00:27]} 54. Qe3 {[%emt 0:00:02]} Qxe3+ {[%emt 0:00:32]} 55. Kxe3 {[%emt 0:00:02]} Rxc4 {[%emt 0:00:02]} 56. d6 {[%emt 0:00:04]} Rc8 {[%emt 0:00:03]} 57. d7 {[%emt 0:00:01]} Rd8 {[%emt 0:00:01]} 58. Rd1 {[%emt 0:00:01]} Kg7 {[%emt 0:00:01]} 59. Kf4 {[%emt 0:00:15]} Kf7 {[%emt 0:00:26]} 60. g5 {[%emt 0:00:11]} Kg7 {[%emt 0:00:11]} 61. f6+ {[%emt 0:00:05]} Kg6 {[%emt 0:00:03]} 62. Kg4 {[%emt 0:00:14]} (62. Rd6 $142 Kf7 63. Kf5 Rg8 64. g6+ (64. d8=R Rxg5+ 65. Ke4 Rg2 $18) (64. d8=Q Rxd8 65. g6+ Ke8 66. f7+ Ke7 67. Rxd8 Kxd8 68. f8=Q+ Kc7 69. g7 Kb7 70. g8=Q Kc7 71. Qc5+ Kd7 72. Qgc8#) 64... Rxg6 65. d8=N+ (65. d8=B Rg1 $18) (65. d8=Q Rg5+ 66. Ke4 Rg8 67. Qe7+ Kg6 68. f7+ Kh5 69. Qe5+ Rg5 70. Qh8#) 65... Kf8 66. Kxg6 Ke8 67. Nb7 Kf8 68. Rd8#) 62... Rxd7 {[%emt 0:00:05]} 63. Rf1 {[%emt 0:00:38]} Rd4+ {[%emt 0:00:23]} 64. Rf4 {[%emt 0:00:02]} Rd8 {[%emt 0:00:58]} 65. h4 {[%emt 0:00:04]} Rh8 {[%emt 0:00:29]} 66. f7 {[%emt 0:00:17]} Rf8 {[%emt 0:00:09]} 67. h5+ {[%emt 0:00:07]} Kg7 {[%emt 0:00:01]} 68. h6+ {[%emt 0:00:04]} Kg6 {[%emt 0:00:19]} 69. Rf6+ {[%emt 0:00:01]} Kh7 {[%emt 0:00:01]} 70. Kh5 {[%emt 0:00:06]} Re8 {[%emt 0:00:25] Check Result:#1} 71. g6+ {[%emt 0:00:04]} 1-0

[Event "Marshall CC U2400 01-2025"]
[Site "New York"]
[Date "2025.01.18"]
[Round "1.15"]
[White "Blank, Moshe"]
[Black "Sarwar, Sawyer L"]
[Result "1-0"]
[Annotator "RC"]
[ECO "C45"]
[WhiteElo "1931"]
[BlackElo "1850"]
[PlyCount "54"]
[EventDate "2025.01.17"]
[EventType "swiss"]
[EventCountry "USA"]
[SourceTitle "playchess.com"]
[Source "ChessBase"]
[SourceQuality "1"]
[TimeControl "5400+30"]

1. e4 {[%emt 0:05:01]} e5 {[%emt 0:00:00]} 2. Nf3 {[%emt 0:00:04]} Nc6 {[%emt 0:00:14]} 3. d4 {[%emt 0:00:11]} exd4 {[%emt 0:00:11]} 4. Nxd4 {[%emt 0:00:07]} Bc5 {[%emt 0:00:10]} 5. Nb3 {[%emt 0:00:49]} Bb6 {[%emt 0:00:07]} 6. Qe2 {[%emt 0:00:15]} Nge7 {[%emt 0:00:50]} 7. Nc3 {[%emt 0:00:12]} O-O {[%emt 0:01:09]} 8. Be3 {[%emt 0:00:10]} d6 {[%emt 0:00:37]} 9. O-O-O {[%emt 0:00:23]} f5 {[%emt 0:02:36]} 10. g3 {[%emt 0:02:34]} fxe4 {[%emt 0:01:57]} 11. Bg2 {[%emt 0:03:44]} Ne5 {[%emt 0:01:49]} 12. h3 {[%emt 0:06:26]} Be6 {[%emt 0:02:58]} 13. Bxe4 {[%emt 0:10:15]} Bc4 {[%emt 0:01:13]} 14. Qe1 {[%emt 0:01:34]} Bxe3+ {[%emt 0:10:25]} 15. Qxe3 {[%emt 0:00:47]} Nf5 {[%emt 0:00:53]} 16. Qd2 {[%emt 0:02:04]} a5 {[%emt 0:07:39]} 17. Bxb7 {[%emt 0:07:00]} Ra7 {[%emt 0:12:05]} 18. Bd5+ {[%emt 0:00:24]} Kh8 {[%emt 0:54:37]} 19. f4 {[%emt 0:06:08]} Bxd5 {[%emt 0:00:00]} 20. Nxd5 {[%emt 0:00:28]} Nc6 {[%emt 0:00:00]} 21. Qc3 {[%emt 0:04:04]} Nce7 {[%emt 0:00:00]} 22. Rhe1 {[%emt 0:08:23]} Nxd5 {[%emt 0:00:00]} 23. Rxd5 {[%emt 0:00:17]} Ne7 {[%emt 0:00:00]} 24. Rg5 {[%emt 0:01:23]} Ng6 {[%emt 0:00:00]} 25. Nd4 {[%emt 0:00:51]} Qf6 {[%emt 0:00:00]} 26. Rf5 {[%emt 0:03:46]} Qd8 {[%emt 0:00:00]} 27. Nc6 {[%emt 0:01:52]} Ra8 {[%emt 0:04:30]} 1-0